fUSD/lending_fUSD_20240213
["ID","MTS","AMOUNT","RATE_DAILY","PERIOD"]
[313910238,1707811846716,-500.0,0.00028767,2]
[313910239,1707811846725,-500.0,0.00028767,2]
[313910240,1707811846734,-541.1042116,0.00028767,2]
[313910241,1707811846746,-509.87755502,0.00028767,2]
[313910242,1707811846756,-500.0,0.00028767,2]
[313910243,1707811846765,-500.0,0.00028767,2]
[313910244,1707811846775,-1155.77,0.00028767,2]
[313910245,1707811846785,-223.62467067,0.00028767,2]
[313910246,1707811846796,-696.95,0.00028767,2]
[313910247,1707811846806,-513.54551126,0.00028767,2]
[313910248,1707811846815,-500.0,0.00028767,2]
[313910249,1707811846826,-500.0,0.00028767,2]
[313910250,1707811846836,-500.0,0.00028767,2]
[313910251,1707811846847,-500.0,0.00028767,2]
[313910252,1707811846857,-500.0,0.00028767,2]
[313910253,1707811846869,-2991.51,0.00028767,2]
[313910254,1707811846880,-500.0,0.00028767,2]
[313910255,1707811846889,-500.0,0.00028767,2]
[313910257,1707811846898,-500.0,0.00028767,2]
[313910259,1707811846907,-500.0,0.00028767,2]
[313910261,1707811846917,-1298.49,0.00028767,2]
[313910263,1707811846926,-500.0,0.00028767,2]
[313910265,1707811846935,-621.44,0.00028767,2]
[313910267,1707811846945,-514.37722644,0.00028767,2]
[313910269,1707811846955,-500.0,0.00028767,2]
[313910271,1707811846965,-90.73020879,0.00028767,2]
[313910290,1707811847127,-409.26979121,0.00028767,2]
[313910292,1707811847136,-25.66855862,0.00028767,2]
[313910294,1707811847150,-474.33144138,0.00028767,2]
[313910296,1707811847159,-500.0,0.00028767,2]
[313910298,1707811847168,-432.78655859,0.00028767,2]
[313910303,1707811847409,-67.21344141,0.00028767,2]
[313910304,1707811847418,-185.26255457,0.00028767,2]
[313910305,1707811847428,-500.0,0.00028767,2]
[313910306,1707811847438,-530.37067572,0.00028767,2]
[313910307,1707811847449,-500.0,0.00028767,2]
[313910308,1707811847459,-500.0,0.00028767,2]
[313910309,1707811847469,-500.0,0.00028767,2]
[313910310,1707811847478,-404.16504063,0.00028767,2]
[313910311,1707811847491,-95.83495937,0.00028767,2]
[313910312,1707811847501,-602.45,0.00028767,2]
[313910313,1707811847510,-32.89630411,0.00028767,2]
[313910314,1707811847689,-264.1135013,0.00028767,2]
[313910315,1707811847706,-202.99019459,0.00028767,2]
[313910316,1707811847716,-500.0,0.00028767,2]
[313910317,1707811847727,-500.0,0.00028767,2]
[313910318,1707811847736,-409.42706168,0.00028767,2]
[313910319,1707811847751,-90.57293832,0.00028767,2]
[313910320,1707811847761,-500.0,0.00028767,2]
[313910321,1707811847771,-534.20605632,0.00028767,2]
[313910322,1707811847780,-500.0,0.00028767,2]
[313910323,1707811847791,-500.0,0.00028767,2]
[313910324,1707811847801,-1202.45,0.00028767,2]
[313910325,1707811847810,-235.98571953,0.00028767,2]
[313910326,1707811847822,-264.01428047,0.00028767,2]
[313910327,1707811847832,-500.0,0.00028767,2]
[313910328,1707811847841,-500.0,0.00028767,2]
[313910329,1707811847851,-500.0,0.00028767,2]
[313910330,1707811847868,-500.0,0.00028767,2]
[313910331,1707811847881,-411.84853515,0.00028767,2]
[313910332,1707811847959,-88.15146485,0.00028767,2]
[313910333,1707811847969,-500.0,0.00028767,2]
[313910334,1707811847978,-500.0,0.00028767,2]
[313910335,1707811847988,-2257.53599922,0.00028767,2]
[313910336,1707811848615,-513.61732375,0.00025,2]
[313910337,1707811848624,-132.46812875,0.00025,2]
[313910338,1707811849624,-67.53187125,0.00025,2]
[313910339,1707811849633,-2305.08400078,0.00028767,2]
[313910340,1707811849643,-500.0,0.00028767,2]
[313910341,1707811849653,-247.27760495,0.00028767,2]
[313910342,1707811849662,-500.0,0.00028767,2]
[313910343,1707811849671,-686.61,0.00028767,2]
[313910344,1707811849681,-500.0,0.00028767,2]
[313910345,1707811849690,-502.07200948,0.00028767,2]
[313910346,1707811849699,-500.0,0.00028767,2]
[313910347,1707811849708,-516.31296852,0.00028767,2]
[313910348,1707811849717,-500.0,0.00028767,2]
[313910349,1707811849726,-500.0,0.00028767,2]
[313910350,1707811849736,-500.0,0.00028767,2]
[313910351,1707811849745,-2049.4965047,0.00028789,2]
[313910352,1707811849754,-193.15345166,0.00028789,2]
[313910353,1707811849763,-179.07231315,0.000288,2]
[313910354,1707811849773,-1300.0,0.000288,10]
[313910355,1707811849784,-414.6286938,0.000288,15]
[313910356,1707811849793,-156.11324546,0.000288,2]
[313910357,1707811849803,-200.31907133,0.000288,2]
[313910358,1707811849812,-204.94330117,0.000288,5]
[313910359,1707811849822,-1573.73891188,0.000288,2]
[313910360,1707811849831,-475.79818892,0.000288,2]
[313910361,1707811849842,-155.65311274,0.00028837,2]
[313910362,1707811849852,-3347.90666704,0.00028839,7]
[313910363,1707811849865,-46652.09333296,0.00028839,7]
[313910364,1707811849877,-21962.18744468,0.00028839,7]
[313910365,1707811849888,-1612.686388,0.00028839,7]
[313910366,1707811849907,-938.59188511,0.00028766,2]
[313910367,1707811849918,-421.47405441,0.00028839,7]
[313910368,1707811901050,186.01,0.00022272,2]
[313910370,1707812654957,20000.0,0.00023,2]
[313910371,1707812693856,20000.0,0.00023,10]
[313910480,1707813031477,-414.36901055,0.00024195,2]
[313910481,1707813031487,-249.56721569,0.00024195,2]
[313910484,1707813031534,-268.44957564,0.00024195,2]
[313910485,1707813031545,-119.72638188,0.00024196,2]
[313910486,1707813031558,-266.96983826,0.00024196,2]
[313910487,1707813031567,-168.82861087,0.00024197,2]
[313910488,1707813031635,-207.07192498,0.00024197,2]
[313910489,1707813031645,-531.91899672,0.00024197,2]
[313910490,1707813031654,-984.97,0.00024219,2]
[313910491,1707813031663,-350.0,0.00025,3]
[313910492,1707813031672,-177.27,0.00025577,2]
[313910493,1707813031681,-150.0,0.00025781,2]
[313910494,1707813031690,-3543.6644023,0.00025782,2]
[313910495,1707813031706,-6838.32241445,0.00025782,2]
[313910496,1707813031843,-409.55815799,0.00025782,2]
[313910497,1707813031876,-1413.69054161,0.00025782,2]
[313910499,1707813031888,-711.68192407,0.00025782,2]
[313910555,1707813037549,-445.94319877,0.00025782,2]
[313910556,1707813037621,-10537.13936081,0.00025782,2]
[313910557,1707813037631,-2000.0,0.00025793,2]
[313910558,1707813037640,-250.0,0.00025798,2]
[313910559,1707813037649,-250.0,0.00025825,2]
[313910560,1707813037659,-714.83,0.00025825,2]
[313910561,1707813037668,-933.59590521,0.00025899,2]
[313910562,1707813037679,-577.24837893,0.00025899,2]
[313910563,1707813037690,-341.57571586,0.00025899,2]
[313910564,1707813037699,-536.67,0.00025899,2]
[313910565,1707813037708,-690.39,0.00025899,2]
[313910566,1707813037717,-198.82,0.00025928,2]
[313910567,1707813037726,-2705.0,0.00025934,2]
[313910568,1707813037736,-250.0,0.00025946,2]
[313910569,1707813037744,-500.0,0.00025947,2]
[313910570,1707813037753,-1024.91748686,0.00025947,2]
[313910571,1707813037765,-187.64251314,0.00025947,2]
[313910572,1707813037774,-500.0,0.00025958,2]
[313910573,1707813037783,-600.0,0.00025975,2]
[313910574,1707813037792,-166.21,0.00026034,2]
[313910575,1707813037801,-155.58,0.00026076,2]
[313910576,1707813037810,-177.27,0.00026125,2]
[313910577,1707813037820,-155.58,0.00026212,2]
[313910578,1707813037828,-138.5648294,0.00026348,2]
[313910579,1707813037840,-17.0151706,0.00026348,2]
[313910580,1707813037852,-223.49,0.00026357,2]
[313910581,1707813037861,-160.3798147,0.00026382,2]
[313910582,1707813037870,-984.97,0.00026483,2]
[313910583,1707813037879,-155.58,0.00026484,2]
[313910584,1707813037889,-1183.1,0.00026523,2]
[313910585,1707813037899,-634.83563452,0.00026576,2]
[313910586,1707813037908,-3886.23307598,0.00026577,2]
[313910587,1707813037920,-18739.72325448,0.00026577,2]
[313910588,1707813037940,-1328.5,0.00026577,2]
[313910589,1707813037953,-709.85997169,0.00026577,2]
[313910590,1707813037964,-1212.04404912,0.00026577,2]
[313910591,1707813037975,-1000.73762323,0.00026577,2]
[313910592,1707813038015,-2455.7,0.00026577,2]
[313910594,1707813040116,-510.13070881,0.00026577,2]
[313910595,1707813041335,-1537.54790989,0.00026577,2]
[313910596,1707813041371,-1119.993,0.00026577,2]
[313910597,1707813041383,-272.65594049,0.00026577,2]
[313910598,1707813041430,-4980.08753053,0.00026577,2]
[313910599,1707813041441,-306.5613438,0.00026577,2]
[313910610,1707813043847,-375.90053585,0.00026576,2]
[313910611,1707813043858,-9647.69404415,0.00026577,2]
[313910612,1707813043870,-2084.82022376,0.00026577,2]
[313910613,1707813043882,-5082.2510425,0.00026577,2]
[313910614,1707813043894,-3324.09300101,0.00026577,2]
[313910615,1707813043923,-596.36672554,0.00026577,2]
[313910616,1707813043969,-359.05198259,0.00026576,2]
[313910617,1707813043981,-55.31702796,0.00026576,2]
[313910618,1707813043991,-52131.70115555,0.00026577,2]
[313910619,1707813044001,-4290.19,0.00026577,2]
[313910620,1707813044011,-155.58,0.0002662,2]
[313910621,1707813044020,-3044.92,0.0002663,2]
[313910622,1707813044029,-177.27,0.00026673,2]
[313910623,1707813044038,-160.3798147,0.00026708,2]
[313910624,1707813044048,-155.58,0.00026756,2]
[313910625,1707813044057,-170.74,0.00026864,2]
[313910626,1707813044066,-155.58,0.00026891,2]
[313910627,1707813044076,-400.0,0.00027,3]
[313910628,1707813044085,-155.58,0.00027027,2]
[313910629,1707813044095,-160.3798147,0.00027035,2]
[313910630,1707813044108,-400.0,0.00027088,2]
[313910631,1707813044117,-2320.83,0.00027088,2]
[313910632,1707813044127,-499.99,0.00027088,2]
[313910633,1707813044137,-300.0,0.00027144,2]
[313910634,1707813044148,-1000.0,0.00027148,2]
[313910635,1707813044157,-155.58,0.00027163,2]
[313910636,1707813044167,-177.27,0.00027221,2]
[313910637,1707813044177,-720.87,0.00027294,2]
[313910638,1707813044187,-714.77,0.00027294,2]
[313910640,1707813044197,-715.4,0.00027294,2]
[313910642,1707813044208,-237.11016825,0.00027295,3]
[313910643,1707813044217,-258.97222444,0.00027295,3]
[313910644,1707813044227,-228.89176877,0.00027295,3]
[313910645,1707813044239,-269.41102885,0.00027295,3]
[313910646,1707813044248,-259.59077576,0.00027295,3]
[313910647,1707813044257,-424.61959519,0.00027295,3]
[313910648,1707813044267,-296.64936302,0.00027295,3]
[313910650,1707813044277,-155.58,0.00027299,2]
[313910652,1707813044287,-1500.0,0.000273,2]
[313910654,1707813044297,-160.3798147,0.00027361,2]
[313910656,1707813044307,-150.13,0.00027397,2]
[313910658,1707813044315,-155.58,0.00027435,2]
[313910659,1707813044325,-1394.6641866,0.000275,2]
[313910660,1707813044334,-1500.0,0.00027528,2]
[313910661,1707813044343,-732.21,0.00027596,2]
[313910662,1707813044356,-15958.0,0.000276,2]
[313910663,1707813044366,-1500.0,0.00027615,2]
[313910664,1707813044375,-1500.0,0.00027645,2]
[313910665,1707813044384,-1394.66418659,0.00027683,2]
[313910666,1707813044393,-160.3798147,0.00027688,2]
[313910667,1707813044402,-177.27,0.00027769,2]
[313910668,1707813044411,-500.0,0.0002777,2]
[313910669,1707813044420,-276.50072359,0.0002777,7]
[313910670,1707813044430,-154.52149132,0.0002777,2]
[313910671,1707813044439,-250.0,0.0002779,2]
[313910672,1707813044448,-150.0,0.0002779,2]
[313910673,1707813044458,-1500.0,0.0002779,2]
[313910674,1707813044469,-161.53,0.00027812,2]
[313910675,1707813044478,-4501.8995,0.00027823,2]
[313910676,1707813044487,-1500.0,0.0002788,2]
[313910677,1707813044497,-150.0,0.0002789,2]
[313910678,1707813044507,-150.0,0.0002789,2]
[313910679,1707813044516,-155.0,0.0002789,2]
[313910680,1707813044526,-300.0,0.00027922,2]
[313910681,1707813044536,-1500.0,0.00027982,2]
[313910682,1707813044545,-160.3798147,0.00028014,2]
[313910683,1707813044554,-1500.0,0.0002806,2]
[313910684,1707813044564,-363.8359719,0.00028064,2]
[313910685,1707813044574,-3102.3444,0.0002809,2]
[313910686,1707813044583,-1500.0,0.00028103,2]
[313910687,1707813044810,-1500.0,0.00028107,2]
[313910688,1707813044819,-171.0213,0.00028148,3]
[313910689,1707813044828,-171.0213,0.00028148,3]
[313910690,1707813044838,-171.0213,0.00028148,3]
[313910691,1707813044847,-171.0213,0.00028148,3]
[313910692,1707813044857,-1500.0,0.00028152,2]
[313910693,1707813044866,-219.46505003,0.00028188,2]
[313910694,1707813044875,-155.27732962,0.00028188,2]
[313910695,1707813044884,-1056.08448532,0.00028188,2]
[313910696,1707813044894,-397.75614773,0.00028188,2]
[313910697,1707813044903,-200268.24257451,0.0002819,2]
[313910698,1707813044912,-1000.0,0.000282,2]
[313910699,1707813044922,-300.0,0.00028222,2]
[313910700,1707813044931,-300.0,0.0002827,2]
[313910701,1707813044940,-3044.92,0.00028274,2]
[313910702,1707813044949,-177.27,0.00028317,2]
[313910703,1707813044959,-500.0,0.00028318,2]
[313910704,1707813044968,-230.96499537,0.00028338,2]
[313910705,1707813044977,-160.3798147,0.00028341,2]
[313910706,1707813044986,-300.0,0.00028345,2]
[313910707,1707813044995,-150.0,0.00028349,2]
[313910708,1707813045005,-300.0,0.00028355,2]
[313910709,1707813045014,-1500.0,0.00028364,2]
[313910710,1707813045023,-1500.0,0.00028434,2]
[313910711,1707813045032,-227.64625164,0.00028438,2]
[313910712,1707813045042,-1337.03635959,0.00028439,2]
[313910713,1707813045052,-150.0,0.00028446,2]
[313910714,1707813045061,-300.0,0.00028451,2]
[313910715,1707813045071,-150.0,0.00028452,2]
[313910716,1707813045080,-150.0,0.00028466,2]
[313910717,1707813045089,-1500.0,0.00028481,2]
[313910718,1707813045098,-150.0,0.00028489,2]
[313910719,1707813045108,-209.8152,0.000285,2]
[313910720,1707813045117,-541.4513,0.000285,2]
[313910721,1707813045126,-159.19808582,0.000285,2]
[313910722,1707813045136,-300.0,0.00028514,2]
[313910723,1707813045145,-1185.06698491,0.00028516,2]
[313910724,1707813045155,-150.0,0.00028541,2]
[313910725,1707813045164,-300.0,0.00028548,2]
[313910726,1707813045172,-1500.0,0.00028555,2]
[313910727,1707813045182,-151.4562757,0.00028558,2]
[313910728,1707813045193,-150.0,0.00028562,2]
[313910729,1707813045203,-1500.0,0.00028564,2]
[313910730,1707813045212,-2000.0,0.00028565,3]
[313910731,1707813045222,-160.99719835,0.00028565,2]
[313910732,1707813045233,-150.0,0.00028569,2]
[313910733,1707813045242,-300.0,0.00028583,2]
[313910734,1707813045251,-150.0,0.00028612,2]
[313910735,1707813045260,-150.0,0.00028617,2]
[313910736,1707813045270,-155.0,0.00028619,2]
[313910737,1707813045279,-150.0,0.00028621,2]
[313910738,1707813045288,-370.01415243,0.00028624,2]
[313910739,1707813045297,-150.0,0.00028625,2]
[313910740,1707813045308,-510.01723771,0.00028628,2]
[313910741,1707813045317,-150.0,0.00028645,2]
[313910743,1707813045327,-342.61356692,0.00028655,2]
[313910744,1707813045338,-170.74,0.00028655,2]
[313910746,1707813045347,-2004.1664,0.00028665,2]
[313910747,1707813045357,-100000.0,0.00028665,2]
[313910748,1707813045367,-1000.0,0.00028665,2]
[313910749,1707813045376,-227569.2292,0.00028665,2]
[313910750,1707813045386,-5083.067,0.00028665,2]
[313910751,1707813045396,-1885.4893,0.00028665,2]
[313910752,1707813045405,-186.09154757,0.00028665,2]
[313910753,1707813045415,-150.0,0.00028666,2]
[313910754,1707813045424,-160.3798147,0.00028667,2]
[313910755,1707813045434,-150.0,0.00028667,2]
[313910756,1707813045443,-8099.47150741,0.00028667,2]
[313910757,1707813045453,-5000.0,0.00028667,2]
[313910758,1707813045462,-150.0,0.00028669,2]
[313910759,1707813045471,-150.0,0.0002867,2]
[313910760,1707813045481,-150.0,0.00028677,2]
[313910761,1707813045490,-160.99719833,0.00028677,2]
[313910763,1707813045500,-300.0,0.00028682,2]
[313910765,1707813045509,-300.0,0.00028689,2]
[313910767,1707813045518,-150.0,0.00028702,2]
[313910769,1707813045527,-300.0,0.00028705,2]
[313910771,1707813045536,-1500.0,0.00028706,2]
[313910773,1707813045545,-150.0,0.0002871,2]
[313910775,1707813045554,-150.0,0.00028711,2]
[313910777,1707813045564,-150.0,0.00028711,2]
[313910779,1707813045573,-150.0,0.00028715,2]
[313910781,1707813045583,-1337.03635959,0.00028726,2]
[313910783,1707813045592,-1500.0,0.00028728,2]
[313910784,1707813045601,-984.97,0.00028747,2]
[313910785,1707813045612,-346.772196,0.00028762,2]
[313910786,1707813045622,-263.24847302,0.00028762,2]
[313910787,1707813045632,-155.18172773,0.00028763,2]
[313910788,1707813045642,-164.39225,0.00028763,2]
[313910789,1707813045651,-3264.30005312,0.00028763,2]
[313910790,1707813045661,-1536.64633974,0.00028763,2]
[313910791,1707813045671,-297.04448897,0.00028763,2]
[313910792,1707813045681,-2779.17399432,0.00028763,2]
[313910793,1707813045691,-56644.49875538,0.00028764,2]
[313910794,1707813045701,-731.64,0.00028765,2]
[313910795,1707813045711,-691.33855405,0.00028765,2]
[313910796,1707813045722,-155.0,0.00028765,2]
[313910797,1707813045732,-2206.57701654,0.00028765,2]
[313910798,1707813045741,-212.63833174,0.00028766,2]
[313910799,1707813045750,-587.04816334,0.00028766,2]
[313910800,1707813045759,-2903.4554638,0.00028766,4]
[313910801,1707813045768,-15636.53930516,0.00028766,2]
[313910802,1707813045777,-207.36032534,0.00028767,3]
[313910803,1707813045787,-500.0,0.00028767,2]
[313910804,1707813045796,-500.0,0.00028767,2]
[313910805,1707813045805,-500.0,0.00028767,2]
[313910806,1707813045814,-500.0,0.00028767,2]
[313910807,1707813045824,-500.0,0.00028767,2]
[313910808,1707813045836,-500.0,0.00028767,2]
[313910809,1707813045846,-500.0,0.00028767,2]
[313910810,1707813045856,-500.0,0.00028767,2]
[313910811,1707813045865,-500.0,0.00028767,2]
[313910812,1707813045873,-500.0,0.00028767,2]
[313910813,1707813045883,-500.0,0.00028767,2]
[313910814,1707813045892,-500.0,0.00028767,2]
[313910815,1707813045901,-500.0,0.00028767,2]
[313910817,1707813045910,-500.0,0.00028767,2]
[313910818,1707813045919,-500.0,0.00028767,2]
[313910819,1707813045929,-500.0,0.00028767,2]
[313910820,1707813045939,-500.0,0.00028767,2]
[313910821,1707813045949,-500.0,0.00028767,2]
[313910822,1707813045958,-569.7638753,0.00028767,2]
[313910823,1707813045968,-500.0,0.00028767,2]
[313910824,1707813045978,-500.0,0.00028767,2]
[313910825,1707813045987,-500.0,0.00028767,2]
[313910826,1707813045998,-500.0,0.00028767,2]
[313910827,1707813046009,-500.0,0.00028767,2]
[313910828,1707813046018,-500.0,0.00028767,2]
[313910829,1707813046028,-500.0,0.00028767,2]
[313910830,1707813046038,-498.64997732,0.00028767,2]
[313910831,1707813046046,-504.82751255,0.00028767,2]
[313910832,1707813046055,-500.0,0.00028767,2]
[313910833,1707813046064,-500.0,0.00028767,2]
[313910834,1707813046073,-500.0,0.00028767,2]
[313910835,1707813046082,-500.0,0.00028767,2]
[313910836,1707813046092,-511.99408962,0.00028767,2]
[313910837,1707813046101,-526.01351193,0.00028767,2]
[313910838,1707813046111,-500.0,0.00028767,2]
[313910839,1707813046120,-500.0,0.00028767,2]
[313910840,1707813046132,-412.59212032,0.00028767,2]
[313910841,1707813046142,-500.0,0.00028767,2]
[313910842,1707813046151,-500.0,0.00028767,2]
[313910843,1707813046160,-261.1440179,0.00028767,2]
[313910844,1707813046170,-500.0,0.00028767,2]
[313910845,1707813046178,-500.0,0.00028767,2]
[313910846,1707813046187,-513.8703283,0.00028767,2]
[313910847,1707813046196,-500.0,0.00028767,2]
[313910848,1707813046207,-500.0,0.00028767,2]
[313910849,1707813046216,-257.64703327,0.00028767,2]
[313910850,1707813046225,-500.0,0.00028767,2]
[313910851,1707813046234,-500.0,0.00028767,2]
[313910852,1707813046243,-285.63499509,0.00028767,2]
[313910853,1707813046254,-853.74,0.00028767,2]
[313910854,1707813046263,-500.0,0.00028767,2]
[313910855,1707813046273,-500.0,0.00028767,2]
[313910856,1707813046284,-500.0,0.00028767,2]
[313910857,1707813046294,-613.09493668,0.00028767,2]
[313910858,1707813046303,-259.17614229,0.00028767,2]
[313910859,1707813046313,-546.8324193,0.00028767,2]
[313910860,1707813046322,-594.9581945,0.00028767,2]
[313910861,1707813046331,-500.0,0.00028767,2]
[313910862,1707813046339,-180.25890359,0.00028767,2]
[313910863,1707813046349,-500.0,0.00028767,2]
[313910864,1707813046360,-500.0,0.00028767,2]
[313910865,1707813046369,-500.0,0.00028767,2]
[313910866,1707813046380,-521.67741789,0.00028767,2]
[313910867,1707813046389,-500.0,0.00028767,2]
[313910868,1707813046399,-500.0,0.00028767,2]
[313910869,1707813046408,-150.0,0.00028767,2]
[313910870,1707813046418,-520.63874669,0.00028767,2]
[313910871,1707813046427,-519.03783786,0.00028767,2]
[313910872,1707813046437,-524.0772266,0.00028767,2]
[313910873,1707813046446,-522.61140793,0.00028767,2]
[313910874,1707813046456,-500.0,0.00028767,2]
[313910875,1707813046465,-500.0,0.00028767,2]
[313910876,1707813046475,-531.9710167,0.00028767,2]
[313910877,1707813046484,-500.0,0.00028767,2]
[313910878,1707813046494,-500.0,0.00028767,2]
[313910879,1707813046503,-606.06876886,0.00028767,2]
[313910880,1707813046512,-500.0,0.00028767,2]
[313910881,1707813046522,-500.0,0.00028767,2]
[313910882,1707813046531,-500.0,0.00028767,2]
[313910883,1707813046541,-349.79832555,0.00028767,2]
[313910884,1707813046550,-500.0,0.00028767,2]
[313910885,1707813046560,-511.19499635,0.00028767,2]
[313910886,1707813046570,-500.0,0.00028767,2]
[313910887,1707813046579,-500.0,0.00028767,2]
[313910888,1707813046588,-500.0,0.00028767,2]
[313910889,1707813046597,-500.0,0.00028767,2]
[313910890,1707813046607,-500.0,0.00028767,2]
[313910891,1707813046619,-500.0,0.00028767,2]
[313910892,1707813046628,-500.0,0.00028767,2]
[313910893,1707813046637,-639.03,0.00028767,2]
[313910894,1707813046647,-500.0,0.00028767,2]
[313910895,1707813046656,-500.0,0.00028767,2]
[313910896,1707813046665,-500.0,0.00028767,2]
[313910897,1707813046674,-500.0,0.00028767,2]
[313910898,1707813046684,-500.0,0.00028767,2]
[313910899,1707813046693,-549.37650201,0.00028767,2]
[313910900,1707813046705,-196.30534128,0.00028767,2]
[313910901,1707813046714,-500.0,0.00028767,2]
[313910902,1707813046723,-500.0,0.00028767,2]
[313910903,1707813046732,-500.0,0.00028767,2]
[313910904,1707813046741,-500.0,0.00028767,2]
[313910905,1707813046750,-500.0,0.00028767,2]
[313910906,1707813046760,-500.0,0.00028767,2]
[313910907,1707813046769,-500.0,0.00028767,2]
[313910908,1707813046778,-302.39148225,0.00028767,2]
[313910909,1707813046787,-500.0,0.00028767,2]
[313910910,1707813046796,-500.0,0.00028767,2]
[313910911,1707813046805,-500.0,0.00028767,2]
[313910912,1707813046815,-500.0,0.00028767,2]
[313910913,1707813046826,-500.0,0.00028767,2]
[313910914,1707813046836,-500.0,0.00028767,2]
[313910915,1707813046845,-500.0,0.00028767,2]
[313910916,1707813046855,-500.0,0.00028767,2]
[313910917,1707813046864,-500.0,0.00028767,2]
[313910918,1707813046872,-533.4310895,0.00028767,2]
[313910919,1707813046882,-500.0,0.00028767,2]
[313910920,1707813046891,-500.0,0.00028767,2]
[313910921,1707813046900,-185.01687671,0.00028767,2]
[313910922,1707813046909,-500.0,0.00028767,2]
[313910923,1707813046918,-500.0,0.00028767,2]
[313910924,1707813046927,-500.0,0.00028767,2]
[313910925,1707813046936,-500.0,0.00028767,2]
[313910926,1707813046945,-510.68887644,0.00028767,2]
[313910927,1707813046954,-500.0,0.00028767,2]
[313910928,1707813046964,-541.59017451,0.00028767,2]
[313910929,1707813046974,-500.0,0.00028767,2]
[313910930,1707813046984,-500.0,0.00028767,2]
[313910931,1707813046993,-500.0,0.00028767,2]
[313910932,1707813047002,-500.0,0.00028767,7]
[313910933,1707813047011,-500.0,0.00028767,2]
[313910934,1707813047020,-500.0,0.00028767,2]
[313910935,1707813047029,-239.07272141,0.00028767,2]
[313910936,1707813047039,-500.0,0.00028767,2]
[313910937,1707813047048,-558.67507941,0.00028767,2]
[313910938,1707813047059,-500.0,0.00028767,2]
[313910939,1707813047070,-273.16275086,0.00028767,2]
[313910940,1707813047080,-485.93296302,0.00028767,2]
[313910941,1707813047091,-500.0,0.00028767,2]
[313910942,1707813047101,-546.09410393,0.00028767,2]
[313910943,1707813047114,-547.95026196,0.00028767,2]
[313910944,1707813047125,-537.26443749,0.00028767,2]
[313910945,1707813047135,-500.0,0.00028767,2]
[313910946,1707813047146,-449.17697849,0.00028767,2]
[313910947,1707813047158,-500.0,0.00028767,2]
[313910948,1707813047169,-500.0,0.00028767,2]
[313910949,1707813047179,-500.0,0.00028767,2]
[313910950,1707813047190,-553.62446466,0.00028767,2]
[313910951,1707813047203,-521.1437963,0.00028767,2]
[313910952,1707813047221,-542.3549399,0.00028767,2]
[313910953,1707813047235,-541.09931797,0.00028767,2]
[313910954,1707813047246,-500.0,0.00028767,2]
[313910955,1707813047257,-500.0,0.00028767,2]
[313910956,1707813047270,-516.43466872,0.00028767,2]
[313910957,1707813047281,-500.0,0.00028767,2]
[313910958,1707813047293,-500.0,0.00028767,2]
[313910959,1707813047304,-500.0,0.00028767,2]
[313910960,1707813047315,-500.0,0.00028767,2]
[313910961,1707813047327,-500.0,0.00028767,2]
[313910962,1707813047338,-558.39058712,0.00028767,2]
[313910963,1707813047349,-500.0,0.00028767,2]
[313910964,1707813047363,-237.70765368,0.00028767,2]
[313910965,1707813047374,-551.28493099,0.00028767,2]
[313910966,1707813047385,-500.0,0.00028767,2]
[313910967,1707813047396,-500.0,0.00028767,2]
[313910968,1707813047406,-558.61608748,0.00028767,2]
[313910969,1707813047416,-500.0,0.00028767,2]
[313910970,1707813047426,-500.0,0.00028767,2]